bitfinex/quotes_SOLUSD_20251116
["timestamp","ask_amount","ask_price","bid_price","bid_amount"]
[1763302341451,7.84606921,139.94,139.9,7.14796283]
[1763302342032,0.7,139.93,139.9,7.14796283]
[1763302342656,0.7,139.93,139.9,9.78882769]
[1763302343154,0.7,139.95,139.9,10.12882769]
[1763302343558,0.7,139.95,139.91,7.14745193]
[1763302343849,0.7,139.95,139.9,10.12882769]
[1763302343850,7.84549615,139.95,139.9,10.12882769]
[1763302344042,7.84549615,139.95,139.9,17.2767378]
[1763302344244,0.7,139.94,139.9,17.2767378]
[1763302344631,0.7,139.94,139.9,16.9367378]
[1763302344834,0.7,139.94,139.88,9.78882769]
[1763302345055,0.7,139.94,139.82,72.8662239]
[1763302345056,0.7,139.94,139.84,18.20303994]
[1763302345259,22.6512,139.92,139.84,18.20303994]
[1763302345552,7.14745193,139.91,139.85,7.15041301]
[1763302345748,7.84745193,139.91,139.85,7.15041301]
[1763302345963,7.84745193,139.91,139.85,7.49041301]
[1763302346335,0.7,139.9,139.85,0.34]
[1763302346743,0.7,139.9,139.86,9.78882769]
[1763302346953,0.7,139.9,139.85,10.12882769]
[1763302348260,0.7,139.9,139.86,7.15000715]
[1763302348660,0.7,139.9,139.85,0.34]
[1763302348661,7.84811465,139.9,139.85,0.34]
[1763302348868,7.84811465,139.9,139.86,9.78882769]
[1763302349035,0.7,139.89,139.86,9.78882769]
[1763302349753,0.7,139.89,139.85,9.78882769]
[1763302350367,7.84864013,139.89,139.85,7.1503759]
[1763302350971,7.84864013,139.89,139.84,7.49087029]
[1763302351154,7.84864013,139.89,139.85,9.78882769]
[1763302352762,17.86990707,139.9,139.84,0.34]
[1763302352950,0.7,139.89,139.85,9.78882769]
[1763302354161,0.7,139.89,139.85,10.12882769]
[1763302354950,7.84850618,139.89,139.85,7.49018718]
[1763302356665,0.7,139.89,139.85,7.49018718]
[1763302357047,7.84760057,139.91,139.86,0.34]
[1763302357769,7.14760057,139.91,139.86,0.34]
[1763302358067,7.8471085,139.92,139.86,0.34]
[1763302358669,7.14643035,139.93,139.86,7.48954337]
[1763302358842,0.7,139.91,139.87,9.78882769]
[1763302360162,0.7,139.91,139.86,9.78882769]
[1763302360552,0.7,139.91,139.85,9.78882769]
[1763302360956,25.0178699,139.9,139.84,7.15101093]
[1763302361475,0.7,139.89,139.84,7.15101093]
[1763302361854,0.7,139.89,139.83,17.28015817]
[1763302362950,7.14898484,139.88,139.83,17.28015817]
[1763302363480,0.7,139.87,139.83,9.78882769]
[1763302363860,0.7,139.87,139.83,16.94026596]
[1763302364370,0.7,139.87,139.83,9.78882769]
[1763302365151,7.84978389,139.87,139.83,16.94036758]
[1763302365350,25.72352379,139.87,139.82,22.6512]
[1763302365559,0.67,139.86,139.82,22.6512]
[1763302366158,0.67,139.86,139.82,29.80321532]
[1763302367176,7.82051394,139.86,139.82,29.80321532]
[1763302367680,0.67,139.85,139.82,29.80321532]
[1763302368181,0.67,139.85,139.82,22.6512]
[1763302368679,0.67,139.85,139.82,9.78882769]
[1763302369678,0.67,139.88,139.84,9.78882769]
[1763302371367,0.67,139.88,139.84,16.93970601]
[1763302371565,7.81912474,139.88,139.84,9.78882769]
[1763302372009,0.67,139.87,139.82,9.78882769]
[1763302372286,0.67,139.87,139.81,7.15254427]
[1763302372654,0.67,139.87,139.8,17.04185967]
[1763302373000,0.67,139.87,139.8,0.1]
[1763302373661,25.02502502,139.86,139.8,0.1]
[1763302374090,0.67,139.85,139.8,0.1]
[1763302375577,7.82095204,139.85,139.8,0.1]
[1763302375979,0.67,139.84,139.8,0.1]
[1763302376977,7.82103171,139.84,139.8,0.1]
[1763302377181,7.14980433,139.87,139.8,9.88882769]
[1763302377480,0.67,139.86,139.81,10.12882769]
[1763302378466,7.82030028,139.86,139.81,7.49212563]
[1763302378970,0.67,139.86,139.82,10.12882769]
[1763302380152,45.52548725,139.92,139.82,10.12882769]
[1763302380153,23.96106092,139.97,139.83,0.34]
[1763302380382,0.67,139.92,139.87,7.14949596]
[1763302380753,0.67,139.92,139.86,9.78882769]
[1763302380962,0.67,139.92,139.86,16.93865218]
[1763302381181,7.81703175,139.92,139.86,16.93865218]
[1763302381684,0.67,139.91,139.86,16.93865218]
[1763302382265,0.67,139.91,139.86,7.14982449]
[1763302382469,7.14796283,139.9,139.86,7.14982449]
[1763302382991,0.67,139.89,139.86,7.14982449]
[1763302383169,0.67,139.89,139.85,22.6512]
[1763302384286,0.67,139.89,139.81,9.78882769]
[1763302384463,7.14898484,139.88,139.83,9.78882769]
[1763302384971,0.67,139.87,139.83,9.78882769]
[1763302386586,0.67,139.87,139.83,7.15123729]
[1763302387991,7.81968351,139.87,139.82,9.78882769]
[1763302388473,0.67,139.86,139.82,9.78882769]
[1763302388865,0.67,139.86,139.82,16.94037699]
[1763302389682,7.82003865,139.86,139.81,29.8036189]
[1763302389984,0.67,139.85,139.81,29.8036189]
[1763302391495,7.82063884,139.85,139.8,0.1]
[1763302391872,0.67,139.84,139.8,0.1]
[1763302392278,0.67,139.84,139.8,7.25296932]
[1763302392696,0.67,139.84,139.8,0.1]
[1763302393192,7.82111073,139.84,139.8,7.2530631]
[1763302393575,0.7,139.83,139.8,7.2530631]
[1763302393775,0.7,139.83,139.8,0.1]
[1763302398508,0.72,139.84,139.8,0.44]
[1763302398711,104.2,139.87,139.8,0.44]
[1763302398913,0.72,139.86,139.81,10.12882769]
[1763302399591,0.72,139.86,139.81,9.78882769]
[1763302399794,7.15051841,139.85,139.8,9.88882769]
[1763302400190,0.72,139.84,139.8,9.88882769]
[1763302400392,0.72,139.84,139.8,10.22882769]
[1763302400594,0.72,139.84,139.8,9.88882769]
[1763302400790,0.72,139.84,139.8,0.1]
[1763302401313,0.72,139.84,139.8,22.7512]
[1763302401839,0.72,139.84,139.8,29.90421494]
[1763302402106,7.87117486,139.84,139.8,29.90421494]
[1763302402285,0.72,139.84,139.8,30.24421494]
[1763302402485,7.15069854,139.85,139.8,29.90421494]
[1763302402694,0.72,139.83,139.8,29.90421494]
[1763302403295,0.72,139.85,139.8,30.24421494]
[1763302403602,0.72,139.84,139.81,9.78882769]
[1763302404216,0.72,139.84,139.81,16.94116535]
[1763302405328,7.87103999,139.84,139.81,7.15233766]
[1763302405488,0.72,139.84,139.8,0.1]
[1763302405698,0.72,139.83,139.8,0.1]
[1763302409813,7.87162912,139.83,139.8,0.1]
[1763302410128,0.72,139.83,139.8,0.1]
[1763302410310,0.72,139.82,139.8,0.1]
[1763302412915,7.87206452,139.82,139.8,0.1]
[1763302413118,7.87206452,139.82,139.79,0.1]
[1763302413324,0.72,139.81,139.79,0.1]
[1763302414617,22.6512,139.8,139.79,0.1]
[1763302414816,29.80427582,139.8,139.79,0.1]
[1763302415013,30.52427582,139.8,139.79,0.1]
[1763302427159,22.2112,139.8,139.79,0.54]
[1763302427357,3.57666427,139.86,139.8,32.44002769]
[1763302427532,2.86666427,139.86,139.8,32.44002769]
[1763302427734,0.71,139.85,139.8,32.44002769]
[1763302427985,0.71,139.85,139.79,0.1]
[1763302428357,7.15102974,139.84,139.79,0.1]
[1763302428982,0.71,139.83,139.79,0.1]
[1763302429371,7.15205263,139.82,139.79,0.1]
[1763302429867,0.71,139.81,139.79,0.1]
[1763302430652,7.15307582,139.8,139.79,0.1]
[1763302430852,7.15307582,139.8,139.75,7.25537368]
[1763302430853,22.6512,139.77,139.68,0.1]
[1763302431161,22.6512,139.72,139.68,0.1]
[1763302431556,0.71,139.71,139.68,0.1]
[1763302432979,7.15819613,139.7,139.68,0.1]
[1763302433576,7.8671282,139.73,139.68,0.1]
[1763302434079,7.8671282,139.73,139.68,0.5]
[1763302435345,7.8671282,139.73,139.68,7.65895277]
[1763302439484,0.71,139.72,139.68,0.1]
[1763302441576,7.86724642,139.72,139.68,0.1]
[1763302441986,0.71,139.71,139.68,0.1]
[1763302442353,7.15724642,139.72,139.68,0.1]
[1763302442552,7.86672072,139.73,139.68,0.1]
[1763302442861,111.35629292,139.74,139.69,0.5]
[1763302443071,9.78882769,139.72,139.69,0.1]
[1763302443284,22.6512,139.7,139.69,0.1]
[1763302443473,29.80939613,139.7,139.69,0.1]
[1763302443786,30.51939613,139.7,139.69,0.1]
[1763302444877,7.15819613,139.7,139.69,0.1]
[1763302445070,7.86819613,139.7,139.69,0.1]
[1763302445466,25.0512039,139.72,139.69,0.1]
[1763302445670,0.71,139.71,139.69,0.1]
[1763302446985,25.0512039,139.72,139.69,0.1]
[1763302447291,25.7612039,139.72,139.69,0.1]
[1763302448903,0.71,139.79,139.71,9.78882769]
[1763302449085,111.35258386,139.81,139.71,9.78882769]
[1763302449262,112.06258386,139.81,139.71,9.78882769]
[1763302449464,7.86258386,139.81,139.75,9.78882769]
[1763302449768,0.71,139.8,139.74,22.6512]
[1763302450376,0.71,139.8,139.74,29.80734696]
[1763302450579,7.86318173,139.8,139.71,22.6512]
[1763302450796,0.71,139.79,139.71,22.6512]
[1763302451287,0.71,139.79,139.72,9.78882769]
[1763302452309,7.15409929,139.78,139.72,16.94554388]
[1763302453395,0.71,139.78,139.72,16.94554388]
[1763302453718,0.7,139.77,139.7,7.15811209]
[1763302453882,22.6512,139.75,139.69,0.1]
[1763302454305,23.3512,139.75,139.69,0.1]
[1763302454609,0.71,139.74,139.69,0.1]
[1763302455613,7.86615711,139.74,139.69,0.1]
[1763302457385,0.71,139.73,139.69,0.1]
[1763302457588,7.15717148,139.72,139.69,0.1]
[1763302458119,7.86717148,139.72,139.69,0.1]
[1763302458613,7.86717148,139.72,139.69,0.06339527]
[1763302460217,7.15717148,139.72,139.69,0.06339527]
[1763302460407,7.86717148,139.72,139.69,0.06339527]
[1763302461316,0.71,139.72,139.69,0.06339527]
[1763302461529,7.86725626,139.72,139.69,0.06339527]
[1763302464324,0.71,139.72,139.69,0.06339527]
[1763302465228,7.86750786,139.72,139.69,0.06339527]
[1763302466223,25.76043657,139.72,139.69,0.06339527]
[1763302466405,0.71,139.71,139.69,0.06339527]
[1763302466604,22.6512,139.7,139.68,0.1]
[1763302466802,0.71,139.69,139.68,0.1]
[1763302467215,7.86870856,139.69,139.68,0.1]
[1763302471937,10.49882769,139.75,139.68,0.17]
[1763302472108,0.71,139.75,139.69,0.07]
[1763302473623,7.86580192,139.75,139.69,7.22870856]
[1763302474153,7.86580192,139.75,139.69,7.15870856]
[1763302474341,7.86580192,139.75,139.7,0.07]
[1763302475652,0.71,139.75,139.7,0.07]
[1763302476355,7.86567348,139.75,139.7,0.07]
[1763302477545,0.71,139.74,139.7,0.07]
[1763302479651,7.86619418,139.74,139.7,0.07]
[1763302480060,0.71,139.73,139.69,7.22870856]
[1763302480243,0.71,139.73,139.68,7.25905657]
[1763302480570,0.71,139.73,139.68,7.32905657]
[1763302481426,7.86689906,139.73,139.68,7.32905657]
[1763302482355,7.15596812,139.75,139.69,0.07]
[1763302482559,7.15596812,139.75,139.69,9.85882769]
[1763302482860,7.15596812,139.75,139.7,0.07]
[1763302483159,7.86596812,139.75,139.7,0.07]
[1763302483357,7.86596812,139.75,139.7,7.22819613]
[1763302483739,0.69,139.74,139.68,0.1]
[1763302484129,0.69,139.74,139.68,7.25905093]
[1763302485342,7.15665927,139.73,139.68,7.25905093]
[1763302485564,7.15665927,139.73,139.68,7.32905093]
[1763302485742,7.84665927,139.73,139.68,7.32905093]
[1763302488837,7.15512306,139.76,139.69,9.85882769]
[1763302489237,7.15512306,139.76,139.7,0.07]
[1763302489238,7.84512306,139.76,139.7,0.07]
[1763302489438,0.69,139.8,139.73,9.78882769]
[1763302489853,0.69,139.79,139.73,9.85882769]
[1763302490246,0.69,139.79,139.73,9.78882769]
[1763302490568,0.69,139.79,139.75,9.78882769]
[1763302492650,0.69,139.79,139.75,7.15530333]
[1763302492957,7.84361565,139.79,139.75,7.15530333]
[1763302494065,7.84361565,139.79,139.75,7.22530333]
[1763302494953,35.75429513,139.85,139.76,9.85882769]
[1763302494954,22.6512,139.82,139.76,9.85882769]
[1763302495252,0.69,139.8,139.76,9.78882769]
[1763302496054,0.69,139.8,139.74,7.225944]
[1763302497246,7.84356914,139.8,139.74,7.225944]
[1763302497949,7.84356914,139.8,139.71,16.94651146]
[1763302498156,0.69,139.79,139.71,16.94651146]
[1763302498450,22.6512,139.77,139.71,9.78882769]
[1763302498841,0.69,139.76,139.71,9.78882769]
[1763302499244,7.15563506,139.75,139.71,16.94650647]
[1763302499445,7.84563506,139.75,139.71,17.01650647]
[1763302500274,7.84563506,139.75,139.71,16.94650647]
[1763302500450,40.53798217,139.77,139.68,0.1]
[1763302500451,0.69,139.74,139.68,0.1]
[1763302500652,0.69,139.74,139.68,9.88882769]
[1763302501264,0.69,139.74,139.69,9.78882769]
[1763302502666,7.15665927,139.73,139.69,16.94748458]
[1763302503172,0.69,139.72,139.69,9.78882769]
[1763302503667,0.69,139.72,139.68,9.88882769]
[1763302503878,0.69,139.72,139.68,9.95882769]
[1763302504695,104.2,139.76,139.69,0.07]
[1763302504847,0.69,139.78,139.72,9.78882769]
[1763302505275,0.69,139.78,139.72,9.85882769]
[1763302505880,0.69,139.78,139.73,0.07]
[1763302506272,7.84457359,139.78,139.73,7.22665927]
[1763302506472,7.15457359,139.78,139.73,7.22665927]
[1763302506776,7.84457359,139.78,139.74,0.07]
[1763302508683,7.84457359,139.78,139.73,7.15665927]
[1763302508856,7.84457359,139.78,139.73,7.22665927]
[1763302511966,0.69,139.78,139.73,7.22665927]
[1763302512488,7.84419932,139.78,139.73,7.22665927]
[1763302513585,7.84470429,139.77,139.72,9.78882769]
[1763302513789,7.84470429,139.77,139.72,16.94589514]
[1763302513985,0.66,139.76,139.72,16.94589514]
[1763302514583,0.66,139.76,139.72,17.01589514]
[1763302515767,7.84409929,139.78,139.73,0.07]
[1763302516168,7.15409929,139.78,139.73,0.07]
[1763302516386,7.84409929,139.78,139.73,0.07]
[1763302516588,122.08192824,139.81,139.73,0.07]
[1763302516790,0.69,139.8,139.75,22.6512]
[1763302517191,0.69,139.83,139.76,9.85882769]
[1763302517498,0.69,139.85,139.8,9.78882769]
[1763302517708,0.69,139.85,139.81,7.15256419]
[1763302518008,0.69,139.85,139.81,7.22256419]
[1763302518203,7.15037178,139.86,139.81,7.22256419]
[1763302518407,7.84037178,139.86,139.81,7.15256419]
[1763302518619,0.69,139.88,139.82,9.85882769]
[1763302518823,7.8390362,139.88,139.82,9.85882769]
[1763302519685,7.8390362,139.88,139.83,7.15154115]
[1763302520182,0.69,139.87,139.83,7.15154115]
[1763302521280,0.69,139.87,139.83,7.22154115]
[1763302522708,0.69,139.87,139.83,7.15154115]
[1763302524103,0.2,139.89,139.84,9.85882769]
[1763302524610,0.2,139.89,139.85,0.07]
[1763302525587,0.2,139.89,139.86,9.78882769]
[1763302528086,0.2,139.89,139.86,16.93861213]
[1763302528896,0.2,139.89,139.86,9.78882769]
[1763302529297,0.89,139.89,139.86,9.78882769]
[1763302529596,0.89,139.89,139.86,16.93875703]
[1763302529800,0.89,139.89,139.86,9.78882769]
[1763302530211,0.89,139.89,139.86,16.93882524]
[1763302531516,0.2,139.89,139.86,9.78882769]
[1763302531814,0.69,139.88,139.85,22.6512]
[1763302533311,0.69,139.88,139.85,29.80156158]
[1763302534013,0.69,139.88,139.85,22.6512]
[1763302534517,0.69,139.88,139.85,29.80161954]
[1763302534722,0.69,139.88,139.85,22.6512]
[1763302535321,0.69,139.88,139.85,29.80171149]
[1763302535856,7.83907119,139.88,139.82,27.66895928]
[1763302536014,7.83907119,139.88,139.81,16.94139188]
[1763302536207,0.69,139.87,139.81,17.01139188]
[1763302536610,0.69,139.87,139.82,0.07]
[1763302541934,7.83949879,139.87,139.82,0.07]
[1763302542133,7.14912522,139.88,139.81,34.82280236]
[1763302542352,0.69,139.88,139.82,0.07]
[1763302542657,0.69,139.88,139.84,22.6512]
[1763302542818,0.2,139.89,139.85,9.78882769]
[1763302543025,0.2,139.89,139.85,9.85882769]
[1763302543242,0.2,139.89,139.86,0.07]
[1763302543832,0.2,139.89,139.87,9.78882769]
[1763302544253,0.87,139.89,139.87,9.78882769]
[1763302545063,0.2,139.89,139.87,9.78882769]
[1763302545417,0.2,139.89,139.87,7.14916303]
[1763302546029,0.87,139.89,139.87,7.14916303]
[1763302547453,0.87,139.89,139.86,9.78882769]
[1763302547454,0.87,139.89,139.86,16.93864502]
[1763302548239,0.67,139.88,139.85,16.93923764]
[1763302548445,0.87,139.89,139.85,16.93923764]
[1763302548749,0.67,139.88,139.84,7.15098352]
[1763302549461,0.67,139.88,139.84,7.22098352]
[1763302549656,0.67,139.88,139.84,7.15098352]
[1763302550955,0.67,139.88,139.84,9.78882769]
[1763302551971,7.81903845,139.88,139.84,9.78882769]
[1763302552545,0.67,139.87,139.84,9.78882769]
[1763302553268,0.67,139.87,139.84,16.93937207]
[1763302554067,0.67,139.87,139.83,9.85882769]
[1763302555570,0.67,139.87,139.84,7.15072507]
[1763302556676,0.67,139.87,139.84,25.02829944]
[1763302559749,0.67,139.87,139.84,7.15072507]
[1763302560395,7.8195531,139.87,139.82,7.15155114]
[1763302560752,0.67,139.86,139.82,7.15155114]
[1763302562168,7.82014154,139.86,139.81,16.94139188]
[1763302562357,7.82014154,139.86,139.78,17.95484176]
[1763302562558,0.67,139.85,139.79,16.94241521]
[1763302562760,0.67,139.85,139.79,39.66361521]
[1763302562978,0.67,139.85,139.8,0.07]
[1763302564679,0.67,139.85,139.79,57.47758402]
[1763302564863,7.82065024,139.85,139.79,57.47758402]
[1763302565480,0.67,139.84,139.79,57.54758402]
[1763302568786,104.4,139.89,139.8,0.07]
[1763302568995,0.67,139.86,139.8,0.07]
[1763302569577,104.4,139.89,139.83,9.78882769]
[1763302569578,0.2,139.89,139.83,9.78882769]
[1763302570071,0.2,139.89,139.84,0.07]
[1763302570072,0.87,139.89,139.84,0.07]
[1763302570272,0.87,139.89,139.83,9.85882769]
[1763302570473,0.67,139.88,139.83,9.85882769]
[1763302570684,0.67,139.88,139.85,9.78882769]
[1763302572688,0.67,139.88,139.85,16.93900487]
[1763302573601,0.2,139.89,139.85,34.8853009]
[1763302573786,0.86,139.89,139.85,34.8853009]
[1763302573988,0.86,139.89,139.85,17.00900487]
[1763302574497,0.2,139.89,139.85,34.8153009]
[1763302574692,0.2,139.89,139.86,0.07]
[1763302574888,0.2,139.89,139.85,34.8853009]
[1763302575088,0.87,139.89,139.85,34.8853009]
[1763302577207,0.2,139.89,139.85,34.8153009]
[1763302577391,0.87,139.89,139.85,34.8853009]
[1763302579211,0.67,139.88,139.85,16.93900487]
[1763302580782,0.67,139.88,139.85,9.78882769]
[1763302581207,0.67,139.88,139.85,16.93899946]
[1763302584709,7.81910606,139.88,139.84,7.15088001]
[1763302585183,0.67,139.87,139.84,7.15088001]
[1763302585388,0.67,139.87,139.83,17.8781578]
[1763302585389,7.81953257,139.87,139.83,7.15154115]
[1763302585707,7.81953257,139.87,139.82,16.94076801]
[1763302585914,0.67,139.86,139.82,9.78882769]
[1763302586704,0.67,139.86,139.81,7.1525284]
[1763302588012,7.82046867,139.86,139.83,22.6512]
[1763302589096,0.67,139.85,139.83,22.6512]
[1763302589939,0.67,139.85,139.78,17.88459399]
[1763302590102,0.67,139.85,139.8,22.6512]
[1763302590916,0.67,139.85,139.81,9.78882769]
[1763302591106,0.67,139.85,139.83,9.78882769]
[1763302591411,0.67,139.87,139.83,9.78882769]
[1763302592724,0.67,139.87,139.83,16.93998005]
[1763302596927,7.81949954,139.87,139.82,7.15170687]
[1763302597109,0.67,139.87,139.83,9.78882769]
[1763302599230,0.67,139.87,139.84,7.15102974]
[1763302602735,7.8195283,139.87,139.83,9.78882769]
[1763302603229,0.67,139.86,139.83,9.78882769]
[1763302603610,0.67,139.86,139.82,7.15155388]
[1763302605336,0.67,139.86,139.83,9.78882769]
[1763302605512,0.72,139.87,139.83,9.85882769]
[1763302605706,0.2,139.89,139.85,9.78882769]
[1763302605918,0.72,139.88,139.85,9.78882769]
[1763302606928,0.72,139.88,139.82,9.78882769]
[1763302607132,0.72,139.88,139.82,9.85882769]
[1763302607734,0.72,139.88,139.84,9.78882769]
[1763302608843,0.72,139.88,139.85,7.15051841]
[1763302610521,0.72,139.88,139.84,7.15102974]
[1763302614941,7.8690178,139.88,139.84,7.15102974]
[1763302615333,0.72,139.87,139.84,7.15102974]
[1763302615549,0.72,139.88,139.84,7.22102974]
[1763302615934,0.72,139.88,139.85,9.78882769]
[1763302618439,0.72,139.88,139.86,7.15000715]
[1763302620155,0.72,139.88,139.85,9.78882769]
[1763302620329,0.72,139.88,139.85,7.15044453]
[1763302621025,7.86919273,139.88,139.83,38.42166264]
[1763302621231,7.86919273,139.88,139.8,0.07]
[1763302621448,7.86919273,139.88,139.82,27.65943888]
[1763302621449,0.72,139.87,139.82,27.65943888]
[1763302621637,0.72,139.87,139.82,17.87061119]
[1763302621950,0.72,139.87,139.8,7.15290288]
[1763302622256,0.72,139.87,139.8,9.78882769]
[1763302622458,0.72,139.87,139.8,16.9418594]
[1763302622459,25.02502502,139.86,139.8,16.9418594]
[1763302622834,0.72,139.85,139.8,16.9418594]
[1763302623659,7.87098787,139.85,139.8,16.9418594]
[1763302623838,0.72,139.84,139.79,17.87061119]
[1763302624042,0.72,139.84,139.79,9.78882769]
[1763302624658,0.72,139.84,139.79,7.15345743]
[1763302625864,7.87150833,139.84,139.78,9.78882769]
[1763302626257,0.72,139.83,139.78,9.78882769]
[1763302627262,0.72,139.83,139.78,9.85882769]
[1763302627639,0.72,139.83,139.8,16.94186489]
[1763302634466,0.72,139.87,139.81,0.07]
[1763302634767,0.72,139.87,139.82,9.78882769]
[1763302634970,0.66,139.86,139.82,9.78882769]
[1763302635350,0.66,139.86,139.82,31.34187398]
[1763302635550,7.81000836,139.86,139.82,21.48304629]
[1763302635750,0.66,139.86,139.8,9.78882769]
[1763302635951,0.66,139.85,139.8,24.75191187]
[1763302637451,7.81081803,139.85,139.8,24.75191187]
[1763302637778,7.81081803,139.85,139.8,7.81000836]
[1763302637961,0.66,139.84,139.77,16.94329675]
[1763302638160,0.66,139.84,139.77,34.81703665]
[1763302638557,0.66,139.84,139.77,25.02820896]
[1763302638876,0.66,139.84,139.75,32.44002769]
[1763302638877,23.3112,139.84,139.75,9.78882769]
[1763302639255,0.66,139.83,139.75,9.78882769]
[1763302639659,25.03218422,139.82,139.75,16.94432639]
[1763302640154,0.66,139.81,139.75,16.94432639]
[1763302640680,7.15307582,139.8,139.75,16.94432639]
[1763302641071,0.66,139.79,139.75,16.94432639]
[1763302642051,0.66,139.79,139.75,7.1554987]
[1763302642672,7.15409929,139.78,139.72,16.94560315]
[1763302642953,7.15409929,139.78,139.72,57.47693474]
[1763302643157,0.66,139.77,139.72,34.82603387]
[1763302643360,0.66,139.77,139.72,16.94590228]
[1763302644056,0.66,139.77,139.71,7.15752573]
[1763302644470,0.66,139.77,139.7,21.50152302]
[1763302644678,7.15512306,139.76,139.69,16.94711822]
[1763302645185,0.66,139.75,139.69,16.94711822]
[1763302646671,0.66,139.75,139.69,34.91388964]
[1763302647785,0.66,139.75,139.69,34.84388964]
[1763302648169,0.66,139.75,139.69,34.91388964]
[1763302650384,7.8156375,139.75,139.69,16.94711822]
[1763302650768,0.66,139.74,139.69,16.94711822]
[1763302652276,7.8161719,139.74,139.69,16.94711822]
[1763302652995,0.66,139.73,139.69,16.94711822]
[1763302653484,0.66,139.73,139.69,34.84388964]
[1763302655084,0.66,139.73,139.69,34.91388964]
[1763302655293,0.66,139.73,139.69,34.84388964]
[1763302655889,0.66,139.73,139.69,16.94711822]
[1763302658093,0.66,139.73,139.69,34.84388964]
[1763302659992,0.66,139.73,139.68,44.25272302]
[1763302660177,7.8166828,139.73,139.68,0.1]
[1763302660381,25.70833097,139.73,139.68,0.1]
[1763302660571,0.66,139.72,139.68,0.1]
[1763302661497,7.15768377,139.71,139.68,0.1]
[1763302661999,0.66,139.7,139.68,0.1]
[1763302663494,7.81847145,139.7,139.68,0.1]
[1763302663886,0.66,139.69,139.68,0.1]
[1763302664288,7.15784289,139.71,139.68,0.1]
[1763302664601,0.66,139.69,139.68,0.1]
[1763302668176,7.81870856,139.69,139.68,0.1]
[1763302670902,0.66,139.69,139.68,0.1]
[1763302671620,7.81870856,139.69,139.68,0.1]
[1763302674092,7.81870856,139.69,139.66,0.1]
[1763302674093,25.71547998,139.69,139.66,0.1]
[1763302674295,0.66,139.68,139.66,0.1]
[1763302675022,7.15973365,139.67,139.66,0.1]
[1763302675396,7.81973365,139.67,139.66,0.1]
[1763302677611,7.81973365,139.67,139.65,0.1]
[1763302677806,7.81973365,139.67,139.59,0.1]
[1763302677807,137.30002769,139.66,139.59,0.1]
[1763302678211,0.66,139.65,139.59,0.1]
[1763302678617,7.16229766,139.62,139.59,0.1]
[1763302679135,0.66,139.61,139.59,0.1]
[1763302681114,7.82285912,139.61,139.59,0.1]
[1763302681834,0.66,139.6,139.59,0.1]
[1763302682513,7.82332378,139.6,139.59,0.1]
[1763302682712,0.66,139.62,139.59,0.1]
[1763302682911,17.90360138,139.64,139.59,0.37]
[1763302682912,0.66,139.64,139.59,0.37]
[1763302683229,0.66,139.65,139.6,22.9212]
[1763302683426,7.81987116,139.67,139.61,10.05882769]
[1763302683820,0.66,139.66,139.61,10.05882769]
[1763302684222,0.66,139.66,139.62,0.27]
[1763302684907,0.66,139.66,139.63,7.16178471]
[1763302685101,7.82027982,139.66,139.62,7.43214941]
[1763302685307,7.82027982,139.66,139.62,7.16214941]
[1763302685508,0.66,139.65,139.62,7.16214941]
[1763302685708,7.82027982,139.66,139.62,7.43214941]
[1763302686242,0.66,139.65,139.61,22.6512]
[1763302686427,0.66,139.65,139.59,9.88882769]
[1763302686606,0.66,139.65,139.6,7.43298336]
[1763302688040,22.6512,139.68,139.61,0.27]
[1763302688213,22.6512,139.68,139.61,7.4324639]
[1763302688214,7.820324,139.66,139.61,7.4324639]
[1763302688611,0.66,139.65,139.61,7.4324639]
[1763302689432,7.82087602,139.65,139.61,7.4324639]